bitfinex/quotes_ETHUSD_20230102
["timestamp","ask_amount","ask_price","bid_price","bid_amount"]
[1672697497796,41.89900085,1219.4,1219.3,22.80672007]
[1672697498007,46.89900085,1219.4,1219.3,22.80672007]
[1672697500329,46.89900085,1219.4,1219.3,20.35479625]
[1672697500646,4.29789837,1219.3,1219.0,0.84228]
[1672697500857,10.8478965,1219.1,1219.0,0.84228]
[1672697501089,40.88906764,1219.1,1219.0,0.84228]
[1672697501256,40.89130375,1219.1,1219.0,0.84228]
[1672697501944,45.89130375,1219.1,1219.0,0.84228]
[1672697504869,40.81040725,1219.1,1219.0,0.84228]
[1672697505211,45.89130375,1219.1,1219.0,0.84228]
[1672697505945,46.14368757,1219.1,1219.0,0.84228]
[1672697506737,41.06279107,1219.1,1219.0,0.84228]
[1672697507180,41.05978168,1219.1,1219.0,0.84228]
[1672697507621,46.14067818,1219.1,1219.0,0.84228]
[1672697508880,45.88829436,1219.1,1219.0,0.84228]
[1672697513920,37.68552436,1219.1,1219.0,0.84228]
[1672697514180,24.40185786,1219.1,1219.0,0.84228]
[1672697514570,32.60462786,1219.1,1219.0,0.84228]
[1672697515518,28.69193793,1219.1,1219.0,0.84228]
[1672697515732,20.48916793,1219.1,1219.0,0.84228]
[1672697516378,20.25693182,1219.1,1219.0,0.84228]
[1672697517788,20.48693182,1219.1,1219.0,0.84228]
[1672697519412,28.68970182,1219.1,1219.0,0.84228]
[1672697519837,28.68970182,1219.1,1219.0,3.51125503]
[1672697521621,36.89247182,1219.1,1219.0,3.51125503]
[1672697524211,31.89247182,1219.1,1219.0,3.51125503]
[1672697524986,36.89247182,1219.1,1219.0,3.51125503]
[1672697527775,36.89614104,1219.1,1219.0,3.51125503]
[1672697528721,32.60239175,1219.1,1219.0,3.50839858]
[1672697530879,37.68328825,1219.1,1219.0,3.50839858]
[1672697531087,32.68328825,1219.1,1219.0,3.50839858]
[1672697532133,37.68328825,1219.1,1219.0,3.50839858]
[1672697534078,29.48051825,1219.1,1219.0,3.50839858]
[1672697537976,45.88605825,1219.1,1219.0,3.50839858]
[1672697538775,46.90223755,1219.1,1219.0,3.50839858]
[1672697540604,40.80516175,1219.1,1219.0,3.50839858]
[1672697541401,46.90223755,1219.1,1219.0,3.50839858]
[1672697544196,41.90223755,1219.1,1219.0,3.50839858]
[1672697545091,46.90223755,1219.1,1219.0,3.50839858]
[1672697545302,47.15462137,1219.1,1219.0,3.50839858]
[1672697545511,47.77052137,1219.1,1219.0,3.50839858]
[1672697545783,47.51813755,1219.1,1219.0,3.50839858]
[1672697551502,47.51813755,1219.1,1219.0,3.50444847]
[1672697553188,47.51813755,1219.1,1219.0,0.83547344]
[1672697554135,47.52469126,1219.1,1219.0,0.83547344]
[1672697554442,41.42106175,1219.1,1219.0,0.83547344]
[1672697554987,47.52464961,1219.1,1219.0,0.83547344]
[1672697556749,47.52464961,1219.1,1219.0,1.94163272]
[1672697559802,47.92881987,1219.1,1219.0,1.94163272]
[1672697561537,41.82523201,1219.1,1219.0,1.94163272]
[1672697561916,42.07761583,1219.1,1219.0,1.94163272]
[1672697565337,48.17912995,1219.1,1219.0,1.94163272]
[1672697566958,47.92674613,1219.1,1219.0,1.94163272]
[1672697567482,49.34074613,1219.1,1219.0,1.94163272]
[1672697567904,49.59312995,1219.1,1219.0,1.94163272]
[1672697571674,49.59312995,1219.1,1219.0,1.93851756]
[1672697572036,49.34074613,1219.1,1219.0,1.93851756]
[1672697572253,31.11703587,1219.1,1219.0,1.93851756]
[1672697573514,22.91426587,1219.1,1219.0,1.93851756]
[1672697573743,22.06836587,1219.1,1219.0,1.93851756]
[1672697575089,15.96685175,1219.1,1219.0,1.93851756]
[1672697575362,24.39962175,1219.1,1219.0,1.93851756]
[1672697577010,29.484318,1219.1,1219.0,1.93851756]
[1672697577614,24.39962175,1219.1,1219.0,1.93851756]
[1672697577859,40.80516175,1219.1,1219.0,1.93851756]
[1672697578077,45.88981943,1219.1,1219.0,1.93851756]
[1672697578287,37.68704943,1219.1,1219.0,1.93851756]
[1672697579241,32.60239175,1219.1,1219.0,1.93851756]
[1672697579559,37.68737518,1219.1,1219.0,1.93851756]
[1672697579727,37.68737518,1219.1,1219.0,1.88851756]
[1672697580140,29.48460518,1219.1,1219.0,1.88851756]
[1672697580509,29.48435892,1219.1,1219.0,1.88851756]
[1672697587245,24.48435892,1219.1,1219.0,1.88851756]
[1672697587452,24.48126183,1219.1,1219.0,1.88851756]
[1672697587770,19.39652466,1219.1,1219.0,1.88851756]
[1672697588396,29.48027559,1219.1,1219.0,1.88851756]
[1672697589861,21.27750559,1219.1,1219.0,1.88851756]
[1672697592498,32.59929466,1219.1,1219.0,1.88851756]
[1672697592648,29.47954882,1219.1,1219.0,1.88851756]
[1672697594666,24.39652466,1219.1,1219.0,1.88851756]
[1672697594861,19.39652466,1219.1,1219.0,1.88851756]
[1672697595276,24.39652466,1219.1,1219.0,1.88851756]
[1672697596483,29.47951532,1219.1,1219.0,1.88851756]
[1672697599483,24.39652466,1219.1,1219.0,1.88851756]
[1672697599939,29.47943773,1219.1,1219.0,1.88851756]
[1672697600795,24.39652466,1219.1,1219.0,1.88851756]
[1672697601114,29.47961542,1219.1,1219.0,1.88851756]
[1672697601320,24.47961542,1219.1,1219.0,1.88851756]
[1672697602215,29.47961542,1219.1,1219.0,1.88851756]
[1672697602444,24.39652466,1219.1,1219.0,1.88851756]
[1672697604209,30.49803878,1219.1,1219.0,1.88851756]
[1672697605207,24.39652466,1219.1,1219.0,1.88851756]
[1672697606582,24.79992238,1219.1,1219.0,1.88851756]
[1672697608033,30.9014365,1219.1,1219.0,1.88851756]
[1672697608243,25.9014365,1219.1,1219.0,1.88851756]
[1672697608414,34.1042065,1219.1,1219.0,1.88851756]
[1672697609321,39.1042065,1219.1,1219.0,1.88851756]
[1672697609623,38.70080878,1219.1,1219.0,1.88851756]
[1672697609841,32.59929466,1219.1,1219.0,1.88851756]
[1672697610027,38.70080878,1219.1,1219.0,1.88851756]
[1672697610430,38.70080878,1219.1,1219.0,1.88474517]
[1672697610637,24.39652466,1219.1,1219.0,1.88474517]
[1672697611640,29.48338272,1219.1,1219.0,1.88474517]
[1672697612679,21.28061272,1219.1,1219.0,1.88474517]
[1672697614578,29.48338272,1219.1,1219.0,1.88474517]
[1672697618829,24.48338272,1219.1,1219.0,1.88474517]
[1672697619750,29.48338272,1219.1,1219.0,1.88474517]
[1672697622419,24.39652466,1219.1,1219.0,1.88474517]
[1672697622567,29.48299483,1219.1,1219.0,1.88474517]
[1672697624494,29.73537865,1219.1,1219.0,1.88474517]
[1672697625026,29.48299483,1219.1,1219.0,1.88474517]
[1672697625862,24.48299483,1219.1,1219.0,1.88474517]
[1672697626724,29.48299483,1219.1,1219.0,1.88474517]
[1672697628470,29.47941882,1219.1,1219.0,1.88474517]
[1672697632760,32.68218882,1219.1,1219.0,1.88474517]
[1672697633656,37.68218882,1219.1,1219.0,1.88474517]
[1672697639338,32.59571865,1219.1,1219.0,1.88474517]
[1672697639603,33.69723277,1219.1,1219.0,1.88474517]
[1672697640311,0.019,1219.0,1218.9,2.76797503]
[1672697640523,19.18754199,1219.0,1218.9,2.46497503]
[1672697640665,18.40773013,1219.0,1218.9,10.66908503]
[1672697640878,18.40773013,1219.0,1218.9,27.07630503]
[1672697641348,13.68541262,1219.0,1218.9,18.87219503]
[1672697641514,9.30655148,1219.0,1218.9,18.87219503]
[1672697642148,9.30655148,1219.0,1218.9,27.07630503]
[1672697642354,9.30655148,1219.0,1218.9,10.66808503]
[1672697643005,9.30655148,1219.0,1218.9,2.46397503]
[1672697643237,4.30655148,1219.0,1218.9,2.36497503]
[1672697647496,4.30655148,1219.0,1218.9,10.56908503]
[1672697647702,4.30655148,1219.0,1218.9,10.66808503]
[1672697648659,4.30655148,1219.0,1218.9,18.87219503]
[1672697650542,4.37255148,1219.1,1218.9,18.87219503]
[1672697650749,8.45541262,1219.1,1218.9,18.87219503]
[1672697651242,8.68541262,1219.0,1218.9,2.46397503]
[1672697651422,21.88755164,1219.0,1218.9,2.36497503]
[1672697651596,17.58230114,1219.0,1218.9,2.36497503]
[1672697652266,21.88752362,1219.0,1218.9,2.36497503]
[1672697653382,30.09096362,1219.0,1218.9,2.36497503]
[1672697653858,25.78574114,1219.0,1218.9,2.36497503]
[1672697655223,33.98918114,1219.0,1218.9,2.36497503]
[1672697656999,39.07554448,1219.0,1218.9,2.36497503]
[1672697658503,27.58666448,1219.0,1218.9,2.36497503]
[1672697659537,19.38322448,1219.0,1218.9,2.36497503]
[1672697659896,14.29686114,1219.0,1218.9,2.36497503]
[1672697660580,14.29686114,1219.0,1218.9,10.56908503]
[1672697660900,14.29686114,1219.0,1218.9,10.66808503]
[1672697661841,9.37886114,1219.0,1218.9,27.07630503]
[1672697662057,9.53304731,1219.0,1218.9,27.07630503]
[1672697662201,9.53504731,1219.0,1218.9,2.46097503]
[1672697662417,9.53304731,1219.0,1218.9,2.36497503]
[1672697664313,9.53304731,1219.0,1218.9,2.36293233]
[1672697668135,9.53258511,1219.0,1218.9,2.36293233]
[1672697668539,9.53258511,1219.0,1218.9,10.56704233]
[1672697668749,9.53258511,1219.0,1218.9,2.46193233]
[1672697668966,9.53258511,1219.0,1218.9,2.36293233]
[1672697669779,19.38322448,1219.0,1218.9,2.36293233]
[1672697670421,14.29686114,1219.0,1218.9,2.36293233]
[1672697670659,13.68138341,1219.0,1218.9,18.77115233]
[1672697670843,9.30252227,1219.0,1218.9,10.66604233]
[1672697671979,9.30252227,1219.0,1218.9,2.46193233]
[1672697672185,9.30252227,1219.0,1218.9,2.36293233]
[1672697673703,9.30252227,1219.0,1218.9,10.56704233]
[1672697673983,9.30252227,1219.0,1218.9,10.66604233]
[1672697677923,9.30252227,1219.0,1218.9,2.46193233]
[1672697678133,9.30252227,1219.0,1218.9,2.36293233]
[1672697679506,4.30252227,1219.0,1218.9,2.36293233]
[1672697679716,4.30252227,1219.0,1218.9,18.77115233]
[1672697679927,8.68841919,1219.0,1218.9,20.27415233]
[1672697681251,8.68841919,1219.0,1218.9,12.10206188]
[1672697681467,3.68841919,1219.0,1218.9,3.89795188]
[1672697681660,3.68841919,1219.0,1218.9,12.00306188]
[1672697681863,3.68841919,1219.0,1218.9,12.10206188]
[1672697682830,3.68841919,1219.0,1218.9,20.30617188]
[1672697683247,3.68841919,1219.0,1218.9,3.89795188]
[1672697683462,3.68841919,1219.0,1218.9,3.79895188]
[1672697683675,4.91842227,1219.0,1218.9,12.00306188]
[1672697683894,4.30252227,1219.0,1218.9,12.10206188]
[1672697684508,4.30252227,1219.0,1218.9,20.30617188]
[1672697684724,9.30252227,1219.0,1218.9,20.30617188]
[1672697685225,9.30028935,1219.0,1218.9,20.30617188]
[1672697685701,9.30028935,1219.0,1218.9,12.10206188]
[1672697686102,9.30028935,1219.0,1218.9,3.89795188]
[1672697686320,9.30028935,1219.0,1218.9,3.79895188]
[1672697686321,13.20344,1219.0,1218.9,3.79895188]
[1672697686494,5.0,1219.0,1218.9,3.79895188]
[1672697687329,13.20344,1219.0,1218.9,3.79895188]
[1672697687537,13.20344,1219.0,1218.9,2.39495188]
[1672697687995,5.0,1219.0,1218.9,2.39495188]
[1672697689782,10.08636334,1219.0,1218.9,2.39495188]
[1672697690011,5.0,1219.0,1218.9,2.39495188]
[1672697690390,10.08636334,1219.0,1218.9,2.39495188]
[1672697692374,10.08636334,1219.0,1218.9,10.59906188]
[1672697692648,10.08636334,1219.0,1218.9,10.69806188]
[1672697693931,9.30304087,1219.0,1218.9,10.69806188]
[1672697695537,9.30304087,1219.0,1218.9,18.90217188]
[1672697695748,4.30304087,1219.0,1218.9,18.90217188]
[1672697696827,9.30304087,1219.0,1218.9,18.90217188]
[1672697697962,8.68854464,1219.0,1218.9,28.51128188]
[1672697699321,3.68854464,1219.0,1218.9,28.51128188]
[1672697703351,3.75454464,1219.1,1218.9,28.51128188]
[1672697703592,3.68854464,1219.1,1218.9,28.51128188]
[1672697704158,3.68854464,1219.1,1218.9,27.10628188]
[1672697704373,3.68854464,1219.0,1218.9,27.10628188]
[1672697704637,3.75454464,1219.1,1218.9,27.10628188]
[1672697704955,3.68854464,1219.1,1218.9,27.10628188]
[1672697706370,3.0714176,1219.0,1218.9,27.10628188]
[1672697707731,3.0714176,1219.0,1218.9,27.10367946]
[1672697707943,4.30304087,1219.0,1218.9,2.45932991]
[1672697708162,4.30304087,1219.0,1218.9,2.36032991]
[1672697709522,9.30304087,1219.0,1218.9,2.36032991]
[1672697712372,17.50648087,1219.0,1218.9,2.36032991]
[1672697713950,34.52926087,1219.0,1218.9,2.36032991]
[1672697714162,9.91894087,1219.0,1218.9,2.36032991]
[1672697714567,25.70992087,1219.0,1218.9,2.36032991]
[1672697714896,9.30304087,1219.0,1218.9,2.36032991]
[1672697715344,9.30304087,1219.0,1218.9,10.56443991]
[1672697715546,9.30304087,1219.0,1218.9,10.66343991]
[1672697717147,8.68505887,1219.0,1218.9,27.07165991]
[1672697717823,8.68505887,1219.0,1218.9,18.86754991]
[1672697718033,3.68505887,1219.0,1218.9,27.07165991]
[1672697719841,3.75105887,1219.1,1218.9,27.07165991]
[1672697720218,3.68505887,1219.1,1218.9,27.07165991]
[1672697727623,3.07049877,1219.0,1218.9,27.07165991]
[1672697727867,3.75105887,1219.1,1218.9,27.07165991]
[1672697728081,3.68505887,1219.1,1218.9,27.07165991]
[1672697728816,3.07068879,1219.0,1218.9,27.07165991]
[1672697729026,3.07068879,1219.0,1218.9,28.48665991]
[1672697729238,3.07068879,1219.0,1218.9,40.83878447]
[1672697729456,3.13668879,1219.1,1218.9,40.83878447]
[1672697729615,3.07068879,1219.1,1219.0,1.413]
[1672697729833,3.07068879,1219.1,1219.0,26.02332]
[1672697730047,3.07068879,1219.1,1219.0,26.12232]
[1672697733289,3.13668879,1219.2,1219.0,26.12232]
[1672697733498,3.07068879,1219.2,1219.0,26.12232]
[1672697733725,3.07068879,1219.2,1219.0,26.15911483]
[1672697734274,3.07068879,1219.2,1219.0,24.74611483]
[1672697734719,3.07068879,1219.2,1219.1,2.3569273]
[1672697735025,3.07068879,1219.2,1219.1,26.9652373]
[1672697735347,3.07068879,1219.2,1219.1,27.0642373]
[1672697748991,3.07268879,1219.2,1219.1,27.0612373]
[1672697749216,3.07068879,1219.2,1219.1,27.0642373]
[1672697750098,3.07068879,1219.2,1219.1,27.06172711]
[1672697751434,3.07068879,1219.2,1219.1,10.65618711]
[1672697751782,3.07068879,1219.2,1219.1,18.85895711]
[1672697754252,3.07068879,1219.2,1219.1,10.65618711]
[1672697754465,3.75105887,1219.3,1219.1,10.65618711]
[1672697754673,3.68505887,1219.2,1219.1,10.65618711]
[1672697755251,3.68505887,1219.2,1219.1,2.45341711]
[1672697755484,3.68505887,1219.2,1219.1,2.35441711]
[1672697756289,3.68505887,1219.2,1219.1,2.30441711]
[1672697756496,3.68505887,1219.2,1219.1,10.50718711]
[1672697756739,3.68505887,1219.2,1219.1,10.60618711]
[1672697758501,3.68217989,1219.2,1219.1,10.60618711]
[1672697759143,3.68217989,1219.2,1219.1,2.40341711]
[1672697759460,3.68217989,1219.2,1219.1,10.50718711]
[1672697759620,3.68217989,1219.2,1219.1,10.60618711]
[1672697759824,3.68217989,1219.2,1219.1,2.40341711]
[1672697760176,3.68217989,1219.2,1219.1,2.30441711]
[1672697760722,4.29797989,1219.2,1219.1,10.50718711]
[1672697760936,4.98484087,1219.3,1219.1,10.60618711]
[1672697761242,4.91884087,1219.3,1219.1,10.60618711]
[1672697761776,4.91884087,1219.3,1219.1,2.40341711]
[1672697762084,4.91884087,1219.3,1219.1,2.30441711]
[1672697762452,5.0,1219.2,1219.1,2.30441711]
[1672697763344,5.0,1219.2,1219.1,10.50718711]
[1672697763505,5.0,1219.2,1219.1,10.60618711]
[1672697764374,5.0,1219.2,1219.1,2.40341711]
[1672697764587,8.68639098,1219.2,1219.1,2.30441711]
[1672697765350,8.68639098,1219.2,1219.1,10.50718711]
[1672697765497,8.68639098,1219.2,1219.1,10.60618711]
[1672697766546,8.68639098,1219.2,1219.1,2.40341711]
[1672697766775,8.68639098,1219.2,1219.1,2.30441711]
[1672697767388,9.30304087,1219.2,1219.1,2.30441711]
[1672697768544,4.30304087,1219.2,1219.1,2.30441711]
[1672697769411,9.30304087,1219.2,1219.1,10.50718711]
[1672697769635,9.30304087,1219.2,1219.1,10.60618711]
[1672697771012,9.30304087,1219.2,1219.1,2.40341711]
[1672697771222,10.08636334,1219.2,1219.1,2.30441711]
[1672697771426,5.0,1219.2,1219.1,2.30441711]
[1672697771648,10.08636334,1219.2,1219.1,2.30441711]
[1672697771971,5.0,1219.2,1219.1,2.30441711]
[1672697772124,10.08636334,1219.2,1219.1,2.30441711]
[1672697772547,9.304321,1219.2,1219.1,2.30441711]
[1672697773856,9.304321,1219.2,1219.1,2.9753712]
[1672697779674,9.304321,1219.2,1219.1,2.97220114]
[1672697780397,13.45318214,1219.2,1219.1,2.97220114]
[1672697780586,13.68318214,1219.2,1219.1,2.97220114]
[1672697782079,13.68318214,1219.2,1219.1,11.17497114]
[1672697782244,13.68318214,1219.2,1219.1,19.47674114]
[1672697782459,13.68318214,1219.2,1219.1,11.27397114]
[1672697782667,9.304321,1219.2,1219.1,3.07120114]
[1672697782869,9.304321,1219.2,1219.1,11.17497114]
[1672697783079,9.304321,1219.2,1219.1,11.27397114]
[1672697784862,9.304321,1219.2,1219.1,3.07120114]
[1672697785081,9.304321,1219.2,1219.1,2.97220114]
[1672697785727,9.304321,1219.2,1219.1,11.17497114]
[1672697785935,9.304321,1219.2,1219.1,11.27397114]
[1672697788497,4.304321,1219.2,1219.1,11.27397114]
[1672697788645,4.304321,1219.2,1219.1,19.47674114]
[1672697789086,4.304321,1219.2,1219.1,11.27397114]
[1672697789534,9.304321,1219.2,1219.1,11.27397114]
[1672697794182,9.29728979,1219.2,1219.1,11.27397114]
[1672697795042,10.08636334,1219.2,1219.1,3.07120114]
[1672697795256,5.0,1219.2,1219.1,2.97220114]
[1672697795571,13.97190945,1219.3,1219.1,2.97220114]
[1672697795720,18.05477059,1219.3,1219.1,2.97220114]
[1672697796633,5.0,1219.2,1219.1,2.97220114]
[1672697801325,9.30283863,1219.2,1219.1,2.97220114]
[1672697802461,4.30283863,1219.2,1219.1,2.97220114]
[1672697803092,4.30290567,1219.2,1219.1,2.97220114]
[1672697803513,9.30290567,1219.2,1219.1,2.97220114]
[1672697804373,5.0,1219.2,1219.1,2.97220114]
[1672697806056,9.30382296,1219.2,1219.1,2.97220114]
[1672697806513,5.0,1219.2,1219.1,2.97220114]
[1672697808521,10.08636334,1219.2,1219.1,2.97220114]
[1672697809097,5.0,1219.2,1219.1,2.97220114]
[1672697809642,18.12077059,1219.3,1219.1,2.97220114]
[1672697809820,18.05477059,1219.3,1219.1,2.97220114]
[1672697810193,5.08636334,1219.2,1219.1,2.97220114]
[1672697810633,10.08636334,1219.2,1219.1,2.97220114]
[1672697811650,10.08836334,1219.2,1219.1,2.97220114]
[1672697812027,10.08636334,1219.2,1219.1,2.97220114]
[1672697816543,5.08636334,1219.2,1219.1,2.97220114]
[1672697817486,10.08636334,1219.2,1219.1,2.97220114]
[1672697818591,10.08636334,1219.2,1219.1,2.96834899]
[1672697823545,5.08636334,1219.2,1219.1,2.96834899]
[1672697824509,10.08636334,1219.2,1219.1,2.96834899]
[1672697829985,5.0,1219.2,1219.1,2.96834899]
[1672697830599,5.08636334,1219.2,1219.1,2.96834899]
[1672697831481,10.08636334,1219.2,1219.1,2.96834899]
[1672697837522,5.08636334,1219.2,1219.1,2.96834899]
[1672697838611,10.08636334,1219.2,1219.1,2.96834899]
[1672697839434,14.23522448,1219.2,1219.1,0.67095409]
[1672697839613,38.22067715,1219.2,1219.1,0.66796736]
[1672697839945,28.99903608,1219.2,1219.1,0.66796736]
[1672697842706,23.91495114,1219.2,1219.1,0.66796736]
[1672697843984,28.99763489,1219.2,1219.1,0.66796736]
[1672697844828,37.19972489,1219.2,1219.1,0.66796736]
[1672697844986,40.31913114,1219.2,1219.1,0.66796736]
[1672697845203,32.11704114,1219.2,1219.1,0.66796736]
[1672697845613,37.19868017,1219.2,1219.1,0.66796736]
[1672697847193,32.11704114,1219.2,1219.1,0.66796736]
[1672697847774,37.19804442,1219.2,1219.1,0.66796736]
[1672697848295,32.11704114,1219.2,1219.1,0.66796736]
[1672697849994,37.19381795,1219.2,1219.1,0.66796736]
[1672697852249,32.19714946,1219.2,1219.1,0.66796736]
[1672697852975,37.19714946,1219.2,1219.1,0.66796736]
[1672697853386,9.30070306,1219.2,1219.1,19.37090226]
[1672697853605,9.30070306,1219.2,1219.1,19.46990226]
[1672697854703,9.30070306,1219.2,1219.1,11.26713226]
[1672697854858,9.30070306,1219.2,1219.1,3.06436226]
[1672697855074,9.30070306,1219.2,1219.1,2.96536226]
[1672697861495,9.30070306,1219.2,1219.1,0.66796736]
[1672697862267,5.0,1219.2,1219.1,0.66796736]
[1672697862439,18.28219832,1219.2,1219.1,0.66796736]
[1672697862836,26.48428832,1219.2,1219.1,0.66796736]
[1672697863110,30.86314946,1219.2,1219.1,0.66796736]
[1672697863325,22.66105946,1219.2,1219.1,0.66796736]
[1672697863792,31.47894946,1219.2,1219.1,0.66796736]
[1672697863998,23.27685946,1219.2,1219.1,0.66796736]
[1672697864202,15.07476946,1219.2,1219.1,0.66796736]
[1672697864436,23.27685946,1219.2,1219.1,0.66796736]
[1672697864687,15.07476946,1219.2,1219.1,0.66796736]
[1672697865053,23.27685946,1219.2,1219.1,0.66796736]
[1672697865310,15.07476946,1219.2,1219.1,0.66796736]
[1672697865793,23.27685946,1219.2,1219.1,0.66796736]
[1672697870648,15.07476946,1219.2,1219.1,0.66796736]
[1672697871037,23.27685946,1219.2,1219.1,0.66796736]
[1672697871290,15.07476946,1219.2,1219.1,0.66796736]
[1672697873615,15.07476946,1219.2,1219.1,0.6640416]
[1672697876421,23.27685946,1219.2,1219.1,0.6640416]
[1672697876626,18.27685946,1219.2,1219.1,0.6640416]
[1672697876854,10.07476946,1219.2,1219.1,0.6640416]
[1672697877063,10.07676946,1219.2,1219.1,0.6640416]
[1672697877277,10.07476946,1219.2,1219.1,0.6640416]
[1672697877486,15.07476946,1219.2,1219.1,0.6640416]
[1672697882302,14.29670984,1219.2,1219.1,0.6640416]
[1672697889889,9.99466114,1219.2,1219.1,0.6640416]
[1672697890547,4.99466114,1219.2,1219.1,0.6640416]
[1672697891460,9.99466114,1219.2,1219.1,0.6640416]
[1672697894978,15.07476946,1219.2,1219.1,0.6640416]
[1672697897627,10.07476946,1219.2,1219.1,0.66079399]
[1672697898513,15.07476946,1219.2,1219.1,0.66079399]
[1672697901171,9.99466114,1219.2,1219.1,0.66079399]
[1672697901519,15.07476946,1219.2,1219.1,0.66079399]
[1672697901731,23.27685946,1219.2,1219.1,0.66079399]
[1672697902881,28.19485946,1219.2,1219.1,0.66079399]
[1672697903191,36.39694946,1219.2,1219.1,0.66079399]
[1672697905030,44.59903946,1219.2,1219.1,0.66079399]
[1672697907583,45.62256715,1219.2,1219.1,0.66079399]
[1672697907738,39.51893114,1219.2,1219.1,0.66079399]
[1672697913685,44.60154852,1219.2,1219.1,0.66079399]
[1672697915475,39.60154852,1219.2,1219.1,0.66079399]
[1672697916268,44.60154852,1219.2,1219.1,0.66079399]
[1672697916669,39.51893114,1219.2,1219.1,0.66079399]
[1672697916935,45.62256715,1219.2,1219.1,0.66079399]
[1672697917637,47.03256715,1219.2,1219.1,0.66079399]
[1672697922342,47.03256715,1219.2,1219.1,0.65764826]
[1672697926597,50.03256715,1219.2,1219.1,0.65764826]
[1672697927806,49.98256715,1219.2,1219.1,0.65764826]
[1672697931229,48.57256715,1219.2,1219.1,0.65764826]
[1672697931859,43.88493114,1219.2,1219.1,0.65764826]
[1672697932263,44.13731496,1219.2,1219.1,0.65764826]
[1672697940884,39.13731496,1219.2,1219.1,0.65764826]
[1672697941724,44.13731496,1219.2,1219.1,0.65764826]
[1672697949707,44.13731496,1219.2,1219.1,0.65528747]
[1672697950613,34.26684114,1219.2,1219.1,0.65528747]
[1672697950762,40.12946239,1219.2,1219.1,0.65528747]
[1672697950974,48.33155239,1219.2,1219.1,0.65528747]
[1672697952508,48.56155239,1219.2,1219.1,0.65528747]
[1672697953509,42.46893114,1219.2,1219.1,0.65528747]
[1672697954076,42.46893114,1219.2,1218.8,8.65711074]
[1672697954280,4.29934941,1218.9,1218.8,8.65711074]
[1672697954489,13.67821055,1218.9,1218.8,0.67631074]
[1672697954717,13.67821055,1218.9,1218.8,0.57731074]
[1672697958251,21.88232055,1218.9,1218.8,0.57731074]
[1672697962597,16.88232055,1218.9,1218.8,0.57731074]
[1672697963380,8.67821055,1218.9,1218.8,0.57731074]
[1672697963647,13.67821055,1218.9,1218.8,0.57731074]
[1672697964868,38.90919114,1218.9,1218.8,0.57731074]
[1672697965033,43.98779763,1218.9,1218.8,0.57731074]
[1672697967818,10.07860649,1218.9,1218.8,16.98689074]
[1672697968036,5.0,1218.9,1218.8,17.08589074]
[1672697968280,9.30365715,1218.9,1218.8,8.88110074]
[1672697968926,9.30365715,1218.9,1218.8,17.08589074]
[1672697969976,19.37546763,1218.9,1218.8,0.67631074]
[1672697970135,19.37546763,1218.9,1218.8,0.57731074]
[1672697970136,43.98779763,1218.9,1218.8,0.57731074]
[1672697970341,35.78368763,1218.9,1218.8,0.57731074]
[1672697970568,35.78368763,1218.9,1218.8,0.57454532]
[1672697972452,43.98779763,1218.9,1218.8,0.57454532]
[1672697972658,35.78368763,1218.9,1218.8,0.57454532]
[1672697972874,43.98779763,1218.9,1218.8,0.57454532]
[1672697973117,35.78368763,1218.9,1218.8,0.57454532]
[1672697976141,43.98779763,1218.9,1218.8,0.57454532]
[1672697976361,35.78368763,1218.9,1218.8,0.57454532]
[1672697978765,43.98779763,1218.9,1218.8,0.57454532]
[1672697978982,38.98779763,1218.9,1218.8,0.57454532]
[1672697980171,43.98779763,1218.9,1218.8,0.57454532]
[1672697981423,43.98979763,1218.9,1218.8,0.57454532]
[1672697981649,43.98779763,1218.9,1218.8,0.57454532]
[1672697986145,38.98779763,1218.9,1218.8,0.57454532]
[1672697987007,43.98779763,1218.9,1218.8,0.57454532]
[1672697987214,44.60379763,1218.9,1218.8,0.57454532]
[1672697989400,28.19557763,1218.9,1218.8,0.57454532]
[1672697989616,19.99146763,1218.9,1218.8,0.57454532]
[1672697991110,28.19557763,1218.9,1218.8,0.57150847]
[1672697992328,27.57957763,1218.9,1218.8,0.57150847]
[1672697992961,27.58157763,1218.9,1218.8,0.57150847]
[1672697993167,27.57957763,1218.9,1218.8,0.57150847]
[1672697996112,14.29686114,1218.9,1218.8,0.57150847]
[1672697996372,19.37546763,1218.9,1218.8,0.57150847]
[1672697997303,27.57957763,1218.9,1218.8,0.57150847]
[1672697997531,35.78368763,1218.9,1218.8,0.57150847]
[1672698002422,30.78368763,1218.9,1218.8,0.57150847]
[1672698003258,35.78368763,1218.9,1218.8,0.57150847]
[1672698003469,9.30381369,1218.9,1218.8,8.77629847]
[1672698003697,9.30381369,1218.9,1218.8,26.70087847]
[1672698004152,5.0,1218.9,1218.8,26.70087847]
[1672698004348,8.68967776,1218.9,1218.8,26.70087847]
[1672698008253,8.68967776,1218.9,1218.8,18.49608847]
[1672698011498,3.68967776,1218.9,1218.8,26.70087847]
[1672698012447,3.68967776,1218.9,1218.8,26.69791345]
[1672698012782,8.68967776,1218.9,1218.8,26.69791345]
[1672698013894,5.0,1218.9,1218.8,26.69791345]
[1672698014299,8.68967776,1218.9,1218.8,26.69791345]
[1672698014508,5.0,1218.9,1218.8,26.69791345]
[1672698016229,8.0694191,1218.9,1218.8,26.69791345]
[1672698016449,5.0,1218.9,1218.8,26.69791345]
[1672698016645,8.0691089,1218.9,1218.8,26.69791345]
[1672698017086,5.0,1218.9,1218.8,26.69791345]
[1672698017414,8.06910243,1218.9,1218.8,26.69791345]
[1672698018565,3.06910243,1218.9,1218.8,26.69791345]
[1672698018871,3.06910243,1218.9,1218.8,0.66754345]
[1672698018872,11.89378776,1218.9,1218.8,0.66754345]
[1672698019187,13.20411,1218.9,1218.8,0.56854345]
[1672698019351,5.0,1218.9,1218.8,0.56854345]
[1672698020561,9.30381369,1218.9,1218.8,0.56854345]
[1672698020915,5.0,1218.9,1218.8,0.56854345]
[1672698021395,9.30381369,1218.9,1218.8,0.56854345]
[1672698021642,21.65678483,1218.9,1218.8,0.56854345]
[1672698021923,21.88678483,1218.9,1218.8,0.56854345]
[1672698027976,26.80478483,1218.9,1218.8,0.56854345]
[1672698028219,35.00889483,1218.9,1218.8,0.56854345]
[1672698030499,43.21300483,1218.9,1218.8,0.56854345]
[1672698031828,18.60067483,1218.9,1218.8,0.56854345]
[1672698033181,18.60067483,1218.9,1218.8,0.56586794]
[1672698034292,18.60067483,1218.9,1218.8,8.77065794]
[1672698034506,18.60067483,1218.9,1218.8,17.07444794]
[1672698035176,18.60067483,1218.9,1218.8,25.27923794]
[1672698035321,13.60067483,1218.9,1218.8,17.07444794]
[1672698035534,18.60067483,1218.9,1218.8,17.07444794]
[1672698036228,18.60067483,1218.9,1218.8,0.66486794]
[1672698036544,18.60067483,1218.9,1218.8,0.56586794]
[1672698047412,13.60067483,1218.9,1218.8,0.56586794]
[1672698048523,13.68267483,1218.9,1218.8,0.56586794]
[1672698048675,9.30381369,1218.9,1218.8,8.77065794]
[1672698048882,9.30381369,1218.9,1218.8,8.86965794]
[1672698051788,5.0,1218.9,1218.8,8.86965794]
[1672698053145,9.30381369,1218.9,1218.8,8.86965794]